{"text_format":"1","workbook":"xlsx","n_sheets":17,"sheets":["Val","Beräkningar","Sid 1","Analysinstrument","Ventilation 1","Ventilation 2","Ventilation 3","Ventilation 4","Ventilation 5","Metanslip","Utsläpp år 1","Utsläpp år 2","Utsläpp h 1","Utsläpp h 2","Bilaga","Protokoll 1","Protokoll 2"],"not_rendered":{"charts":0,"images":2,"macros":1,"external_links":0,"defined_names":0,"comments":2,"pivot_tables":0},"unopened":[],"bounds":{"document_bytes":16777216,"sheet_cells":100000,"rows_first":2000,"rows_last":500,"rows_between":2000,"halvings":0,"cell_chars":16384,"cell_head_chars":4096},"cells_cut":0,"cells_raw":0,"read":"whole","date_system":"1900"}

{"sheet":"Val","index":0,"n_rows":23,"n_cols":10,"rows_kept":23,"cut":false,"hidden":false,"merged":[]}
[]
[null,"Uppgraderingsanläggning"]
[]
[null,"Samtliga utsläppskällor på anläggningen ges en identifikation i listan."]
[null,"OBS Detta gäller även utsläppskällor med nollutsläpp, dvs där metan inte kunnat detekteras (sätt metanhalten till 0 i beräkningar och kommentera i respektive resultatflik)."]
[]
[null,"Beräkningsmetod","EgMet nomenklatur","Array","Ev. lokal benämning/tag",null,null,null,null,"EgMet nomenklatur lista"]
[null,"Analysinstrument",null,{"$f":"IF(C8<>\"\",1,0)","v":0},null,null,null,null,null,"Analysinstrument"]
[null,"Ventilation 1",null,0,null,null,null,null,null,"Processventilation"]
[null,"Ventilation 2",null,0,null,null,null,null,null,"Metanslip"]
[null,"Ventilation 3",null,0,null,null,null,null,null,"Övrigt"]
[null,"Ventilation 4",null,0]
[null,"Ventilation 5",null,0]
[null,"Metanslip",null,0]
[null,"Utsläpp (Nm3/år) 1",null,0]
[null,"Utsläpp (Nm3/år) 2",null,0]
[null,"Utsläpp (Nm3/h) 1",null,0]
[null,"Utsläpp (Nm3/h) 2",null,0]
[]
[]
[]
[]
[null,"Utskrift"]

{"sheet":"Beräkningar","index":1,"n_rows":234,"n_cols":17,"rows_kept":234,"cut":false,"hidden":false,"merged":[[137,4,137,6],[138,4,138,6],[160,4,160,6],[161,5,161,6],[110,4,110,6],[111,5,111,6],[112,4,112,6],[113,4,113,6],[135,4,135,6],[136,5,136,6],[88,4,88,6],[35,4,35,6],[36,5,36,6],[37,4,37,6],[38,4,38,6],[60,4,60,6],[61,5,61,6],[62,4,62,6],[63,4,63,6],[85,4,85,6],[86,5,86,6],[87,4,87,6]]}
["indata och konstanter",null,null,null,"UPPGRADERINGSANLÄGGNING",null,null,null,null,"vers. 3.1"]
["beräknade data"]
["slutresultat",null,null,null,{"$f":"IF(IterativAktiv(),\"\",\"Iterativ beräkning är ej aktiverad!\")","v":""}]
[]
["PRODUKTIONSDATA",null,null,null,"RÅGAS",null,"RENGAS",null,"RÅGAS ber","CO2 ber"]
["Q (gasflöde)","Nm3/h",null,null,1000,null,600,null,{"$f":"G6*G7/100/E7*100","v":1000},{"$f":"(100-E7)/100*I6","v":400}]
["CH4 (metanhalt)","vol-%",null,null,60,null,100]
["Momentant metanflöde","Nm3 CH4/h",null,null,{"$f":"E6*E7/100","v":600},null,{"$f":"G6*G7/100","v":600}]
["Årsflöde gas","Nm3/år",null,null,100000,null,60000]
["Metanhalt årsmedel","vol-%",null,null,1,null,100]
["Totalt genomflöde","Nm3 CH4/år",null,null,{"$f":"E9*E10/100","v":1000},null,{"$f":"G9*G10/100","v":60000}]
["Drifttimmar per år","h/år"]
[]
["FÖRLUSTER",null,null,null,"RÅGAS",null,"RENGAS",null,null,null,null,null,null,null,null,"Ventilation val","Metanhalt val"]
["Momentan förlust","Nm3 CH4/h",null,null,{"$f":"C26*Val!D8+C51*Val!D9+C76*Val!D10+C101*Val!D11+C126*Val!D12+C151*Val!D13+C176*Val!D14+E188*Val!D15+E200*Val!D16+C212*Val!D17+C224*Val!D18","v":0},null,{"$f":"C26*Val!D8+C51*Val!D9+C76*Val!D10+C101*Val!D11+C126*Val!D12+C151*Val!D13+C176*Val!D14+G188*Val!D15+G200*Val!D16+C212*Val!D17+C224*Val!D18","v":0},null,"Uppdatera formeln i E15 och G15 om fler utsläppspunkter läggs till manuellt",null,null,null,null,null,null,"Mätning av flöde","online"]
["Momentan förlust","%",null,null,{"$f":"E15/$E$8*100","v":0},null,{"$f":"G15/($G$8+G15)*100","v":0},null,null,null,null,null,null,null,null,"Fläktdata m3/h","påsprov"]
["Årlig förlust","Nm3 CH4/år",null,null,{"$f":"C30*Val!D8+E55*Val!D9+E80*Val!D10+E105*Val!D11+E130*Val!D12+E155*Val!D13+E180*Val!D14+E192*Val!D15+E204*Val!D16+E216*Val!D17+E228*Val!D18","v":0},null,{"$f":"C30*Val!D8+G55*Val!D9+G80*Val!D10+G105*Val!D11+G130*Val!D12+G155*Val!D13+G180*Val!D14+G192*Val!D15+G204*Val!D16+G216*Val!D17+G228*Val!D18","v":0},null,"Uppdatera formeln i E17 och G17 om fler utsläppspunkter läggs till manuellt",null,null,null,null,null,null,"Schablon 3000 Nm3/h"]
["Årlig förlust","%",null,null,{"$f":"E17/$E$11*100","v":0},null,{"$f":"G17/($G$11+G17)*100","v":0},null,null,null,null,null,null,null,null,"Schablon 6000 Nm3/h"]
[]
["ANALYSINSTRUMENT",{"$f":"Val!C8","v":0},null,{"$f":"Val!E8","v":0}]
["INDATA"]
["Qutsläpp Rågas","lpm (l/min)"]
["Qutsläpp Rengas","lpm (l/min)"]
["RESULTAT"]
["Qutsläpp","l/h",{"$f":"C22*60+C23*60","v":0}]
["Momentant utsläpp","Nm3 CH4/h",{"$f":"$E$7/100*C22*60/1000+$G$7/100*C23*60/1000","v":0},null,"RÅGAS",null,"RENGAS"]
["Momentant metanflöde","Nm3 CH4/h",null,null,{"$f":"$E$8","v":600},null,{"$f":"$G$8+$G$15","v":600}]
["Momentan förlust","%",null,null,{"$f":"100*C26/$E$8","v":0},null,{"$f":"100*C26/($G$8+$G$15)","v":0}]
["ÅRSVÄRDEN"]
["Årligt utsläpp","Nm3 CH4/år",{"$f":"($E$10/100*C22*60/1000+$G$10/100*C23*60/1000)*$E$12","v":0}]
["Årligt metanflöde","Nm3 CH4/år",null,null,{"$f":"$E$11","v":1000},null,{"$f":"$G$11+$G$17","v":60000}]
["Årlig förlust","%",null,null,{"$f":"100*C30/E31","v":0},null,{"$f":"100*C30/G31","v":0}]
[]
["VENTILATION 1",{"$f":"Val!C9","v":0},null,{"$f":"Val!E9","v":0}]
["INDATA"]
["CH4(utsläpp)","ppm",null,null,"online"]
["Tutsläpp","ºC",null,null,"tid (min):"]
["Differenstryck, pd","Pa",null,null,"Mätning av flöde"]
["Gashastighet","m/s"]
["Rör diameter","cm"]
["KONSTANTER"]
["putsläpp","kPa",101.3]
["Luft densitet","kg/Nm3",1.29]
["RESULTAT"]
["Luft densitet","kg/m3",{"$f":"C43*C42/101.3*273.15/(273.15+C37)","v":1.29}]
["Rör area","m2",{"$f":"(C40/100)^2*0.25*PI()","v":0}]
["Gashastighet","m/s",{"$f":"IF(AND(C38=\"\",C39=\"\"),0,IF(AND(C38<>\"\",C39<>\"\"),99999,IF(C38=\"\",C39,SQRT(2*C38/C45))))","v":0},null,{"$f":"IF(C47=99999,\"Ange Pa eller m/s!\",\"\")","v":""}]
["Qutsläpp","l/s",{"$f":"C46*C47*1000","v":0}]
["Qutsläpp","m3/h",{"$f":"IF(E38=\"Fläktdata m3/h\",E39,C48/1000*60*60)","v":0}]
["Qutsläpp","Nm3/h",{"$f":"IF(E38=\"Schablon 3000 Nm3/h\",3000,IF(E38=\"Schablon 6000 Nm3/h\",6000,C49*C42/101.3*273.15/(273.15+C37)))","v":0}]
["Momentant utsläpp","Nm3 CH4/h",{"$f":"C50*C36/1000000","v":0},null,"RÅGAS",null,"RENGAS"]
["Momentant metanflöde","Nm3 CH4/h",null,null,{"$f":"$E$8","v":600},null,{"$f":"$G$8+$G$15","v":600}]
["Momentan förlust","%",null,null,{"$f":"100*C51/$E$8","v":0},null,{"$f":"100*C51/($G$8+$G$15)","v":0}]
["ÅRSVÄRDEN","Skalning:","h",null,null,{"$f":"IF(AND(C54=\"d\",E54=\"\"),\"Ange drifttid!\",\"\")","v":""}]
["Årligt utsläpp","Nm3 CH4/år",null,null,{"$f":"IF(C54=\"p\",E53/100*E56,IF(C54=\"h\",C51*$E$12,IF(C54=\"d\",C51*E54,0)))","v":0},null,{"$f":"IF(C54=\"p\",G53/100*G56,IF(C54=\"h\",C51*$E$12,IF(C54=\"d\",C51*E54,0)))","v":0}]
["Årligt metanflöde","Nm3 CH4/år",null,null,{"$f":"$E$11","v":1000},null,{"$f":"$G$11+$G$17","v":60000}]
["Årlig förlust","%",null,null,{"$f":"100*E55/E56","v":0},null,{"$f":"100*G55/G56","v":0}]
[]
["VENTILATION 2",{"$f":"Val!C10","v":0},null,{"$f":"Val!E10","v":0}]
["INDATA"]
["CH4(utsläpp)","ppm",null,null,"online"]
["Tutsläpp","ºC",null,null,"tid (min):"]
["Differenstryck, pd","Pa",null,null,"Mätning av flöde"]
["Gashastighet","m/s"]
["Rör diameter","cm"]
["KONSTANTER"]
["putsläpp","kPa",101.3]
["Luft densitet","kg/Nm3",1.29]
["RESULTAT"]
["Luft densitet","kg/m3",{"$f":"C68*C67/101.3*273.15/(273.15+C62)","v":1.29}]
["Rör area","m2",{"$f":"(C65/100)^2*0.25*PI()","v":0}]
["Gashastighet","m/s",{"$f":"IF(AND(C63=\"\",C64=\"\"),0,IF(AND(C63<>\"\",C64<>\"\"),99999,IF(C63=\"\",C64,SQRT(2*C63/C70))))","v":0},null,{"$f":"IF(C72=99999,\"Ange Pa eller m/s!\",\"\")","v":""}]
["Qutsläpp","l/s",{"$f":"C71*C72*1000","v":0}]
["Qutsläpp","m3/h",{"$f":"IF(E63=\"Fläktdata m3/h\",E64,C73/1000*60*60)","v":0}]
["Qutsläpp","Nm3/h",{"$f":"IF(E63=\"Schablon 3000 Nm3/h\",3000,IF(E63=\"Schablon 6000 Nm3/h\",6000,C74*C67/101.3*273.15/(273.15+C62)))","v":0}]
["Momentant utsläpp","Nm3 CH4/h",{"$f":"C75*C61/1000000","v":0},null,"RÅGAS",null,"RENGAS"]
["Momentant metanflöde","Nm3 CH4/h",null,null,{"$f":"$E$8","v":600},null,{"$f":"$G$8+$G$15","v":600}]
["Momentan förlust","%",null,null,{"$f":"100*C76/$E$8","v":0},null,{"$f":"100*C76/($G$8+$G$15)","v":0}]
["ÅRSVÄRDEN","Skalning:","h",null,null,{"$f":"IF(AND(C79=\"d\",E79=\"\"),\"Ange drifttid!\",\"\")","v":""}]
["Årligt utsläpp","Nm3 CH4/år",null,null,{"$f":"IF(C79=\"p\",E78/100*E81,IF(C79=\"h\",C76*$E$12,IF(C79=\"d\",C76*E79,0)))","v":0},null,{"$f":"IF(C79=\"p\",G78/100*G81,IF(C79=\"h\",C76*$E$12,IF(C79=\"d\",C76*E79,0)))","v":0}]
["Årligt metanflöde","Nm3 CH4/år",null,null,{"$f":"$E$11","v":1000},null,{"$f":"$G$11+$G$17","v":60000}]
["Årlig förlust","%",null,null,{"$f":"100*E80/E81","v":0},null,{"$f":"100*G80/G81","v":0}]
[]
["VENTILATION 3",{"$f":"Val!C11","v":0},null,{"$f":"Val!E11","v":0}]
["INDATA"]
["CH4(utsläpp)","ppm",null,null,"online"]
["Tutsläpp","ºC",null,null,"tid (min):"]
["Differenstryck, pd","Pa",null,null,"Mätning av flöde"]
["Gashastighet","m/s"]
["Rör diameter","cm"]
["KONSTANTER"]
["putsläpp","kPa",101.3]
["Luft densitet","kg/Nm3",1.29]
["RESULTAT"]
["Luft densitet","kg/m3",{"$f":"C93*C92/101.3*273.15/(273.15+C87)","v":1.29}]
["Rör area","m2",{"$f":"(C90/100)^2*0.25*PI()","v":0}]
["Gashastighet","m/s",{"$f":"IF(AND(C88=\"\",C89=\"\"),0,IF(AND(C88<>\"\",C89<>\"\"),99999,IF(C88=\"\",C89,SQRT(2*C88/C95))))","v":0},null,{"$f":"IF(C97=99999,\"Ange Pa eller m/s!\",\"\")","v":""}]
["Qutsläpp","l/s",{"$f":"C96*C97*1000","v":0}]
["Qutsläpp","m3/h",{"$f":"IF(E88=\"Fläktdata m3/h\",E89,C98/1000*60*60)","v":0}]
["Qutsläpp","Nm3/h",{"$f":"IF(E88=\"Schablon 3000 Nm3/h\",3000,IF(E88=\"Schablon 6000 Nm3/h\",6000,C99*C92/101.3*273.15/(273.15+C87)))","v":0}]
["Momentant utsläpp","Nm3 CH4/h",{"$f":"C100*C86/1000000","v":0},null,"RÅGAS",null,"RENGAS"]
["Momentant metanflöde","Nm3 CH4/h",null,null,{"$f":"$E$8","v":600},null,{"$f":"$G$8+$G$15","v":600}]
["Momentan förlust","%",null,null,{"$f":"100*C101/$E$8","v":0},null,{"$f":"100*C101/($G$8+$G$15)","v":0}]
["ÅRSVÄRDEN","Skalning:","h",null,null,{"$f":"IF(AND(C104=\"d\",E104=\"\"),\"Ange drifttid!\",\"\")","v":""}]
["Årligt utsläpp","Nm3 CH4/år",null,null,{"$f":"IF(C104=\"p\",E103/100*E106,IF(C104=\"h\",C101*$E$12,IF(C104=\"d\",C101*E104,0)))","v":0},null,{"$f":"IF(C104=\"p\",G103/100*G106,IF(C104=\"h\",C101*$E$12,IF(C104=\"d\",C101*E104,0)))","v":0}]
["Årligt metanflöde","Nm3 CH4/år",null,null,{"$f":"$E$11","v":1000},null,{"$f":"$G$11+$G$17","v":60000}]
["Årlig förlust","%",null,null,{"$f":"100*E105/E106","v":0},null,{"$f":"100*G105/G106","v":0}]
[]
["VENTILATION 4",{"$f":"Val!C12","v":0},null,{"$f":"Val!E12","v":0}]
["INDATA"]
["CH4(utsläpp)","ppm",null,null,"online"]
["Tutsläpp","ºC",null,null,"tid (min):"]
["Differenstryck, pd","Pa",null,null,"Mätning av flöde"]
["Gashastighet","m/s"]
["Rör diameter","cm"]
["KONSTANTER"]
["putsläpp","kPa",101.3]
["Luft densitet","kg/Nm3",1.29]
["RESULTAT"]
["Luft densitet","kg/m3",{"$f":"C118*C117/101.3*273.15/(273.15+C112)","v":1.29}]
["Rör area","m2",{"$f":"(C115/100)^2*0.25*PI()","v":0}]
["Gashastighet","m/s",{"$f":"IF(AND(C113=\"\",C114=\"\"),0,IF(AND(C113<>\"\",C114<>\"\"),99999,IF(C113=\"\",C114,SQRT(2*C113/C120))))","v":0},null,{"$f":"IF(C122=99999,\"Ange Pa eller m/s!\",\"\")","v":""}]
["Qutsläpp","l/s",{"$f":"C121*C122*1000","v":0}]
["Qutsläpp","m3/h",{"$f":"IF(E113=\"Fläktdata m3/h\",E114,C123/1000*60*60)","v":0}]
["Qutsläpp","Nm3/h",{"$f":"IF(E113=\"Schablon 3000 Nm3/h\",3000,IF(E113=\"Schablon 6000 Nm3/h\",6000,C124*C117/101.3*273.15/(273.15+C112)))","v":0}]
["Momentant utsläpp","Nm3 CH4/h",{"$f":"C125*C111/1000000","v":0},null,"RÅGAS",null,"RENGAS"]
["Momentant metanflöde","Nm3 CH4/h",null,null,{"$f":"$E$8","v":600},null,{"$f":"$G$8+$G$15","v":600}]
["Momentan förlust","%",null,null,{"$f":"100*C126/$E$8","v":0},null,{"$f":"100*C126/($G$8+$G$15)","v":0}]
["ÅRSVÄRDEN","Skalning:","h",null,null,{"$f":"IF(AND(C129=\"d\",E129=\"\"),\"Ange drifttid!\",\"\")","v":""}]
["Årligt utsläpp","Nm3 CH4/år",null,null,{"$f":"IF(C129=\"p\",E128/100*E131,IF(C129=\"h\",C126*$E$12,IF(C129=\"d\",C126*E129,0)))","v":0},null,{"$f":"IF(C129=\"p\",G128/100*G131,IF(C129=\"h\",C126*$E$12,IF(C129=\"d\",C126*E129,0)))","v":0}]
["Årligt metanflöde","Nm3 CH4/år",null,null,{"$f":"$E$11","v":1000},null,{"$f":"$G$11+$G$17","v":60000}]
["Årlig förlust","%",null,null,{"$f":"100*E130/E131","v":0},null,{"$f":"100*G130/G131","v":0}]
[]
["VENTILATION 5",{"$f":"Val!C13","v":0},null,{"$f":"Val!E13","v":0}]
["INDATA"]
["CH4(utsläpp)","ppm",null,null,"online"]
["Tutsläpp","ºC",null,null,"tid (min):"]
["Differenstryck, pd","Pa",null,null,"Mätning av flöde"]
["Gashastighet","m/s"]
["Rör diameter","cm"]
["KONSTANTER"]
["putsläpp","kPa",101.3]
["Luft densitet","kg/Nm3",1.29]
["RESULTAT"]
["Luft densitet","kg/m3",{"$f":"C143*C142/101.3*273.15/(273.15+C137)","v":1.29}]
["Rör area","m2",{"$f":"(C140/100)^2*0.25*PI()","v":0}]
["Gashastighet","m/s",{"$f":"IF(AND(C138=\"\",C139=\"\"),0,IF(AND(C138<>\"\",C139<>\"\"),99999,IF(C138=\"\",C139,SQRT(2*C138/C145))))","v":0},null,{"$f":"IF(C147=99999,\"Ange Pa eller m/s!\",\"\")","v":""}]
["Qutsläpp","l/s",{"$f":"C146*C147*1000","v":0}]
["Qutsläpp","m3/h",{"$f":"IF(E138=\"Fläktdata m3/h\",E139,C148/1000*60*60)","v":0}]
["Qutsläpp","Nm3/h",{"$f":"IF(E138=\"Schablon 3000 Nm3/h\",3000,IF(E138=\"Schablon 6000 Nm3/h\",6000,C149*C142/101.3*273.15/(273.15+C137)))","v":0}]
["Momentant utsläpp","Nm3 CH4/h",{"$f":"C150*C136/1000000","v":0},null,"RÅGAS",null,"RENGAS"]
["Momentant metanflöde","Nm3 CH4/h",null,null,{"$f":"$E$8","v":600},null,{"$f":"$G$8+$G$15","v":600}]
["Momentan förlust","%",null,null,{"$f":"100*C151/$E$8","v":0},null,{"$f":"100*C151/($G$8+$G$15)","v":0}]
["ÅRSVÄRDEN","Skalning:","h",null,null,{"$f":"IF(AND(C154=\"d\",E154=\"\"),\"Ange drifttid!\",\"\")","v":""}]
["Årligt utsläpp","Nm3 CH4/år",null,null,{"$f":"IF(C154=\"p\",E153/100*E156,IF(C154=\"h\",C151*$E$12,IF(C154=\"d\",C151*E154,0)))","v":0},null,{"$f":"IF(C154=\"p\",G153/100*G156,IF(C154=\"h\",C151*$E$12,IF(C154=\"d\",C151*E154,0)))","v":0}]
["Årligt metanflöde","Nm3 CH4/år",null,null,{"$f":"$E$11","v":1000},null,{"$f":"$G$11+$G$17","v":60000}]
["Årlig förlust","%",null,null,{"$f":"100*E155/E156","v":0},null,{"$f":"100*G155/G156","v":0}]
[]
["METANSLIP","Flöde:","u",null,{"$f":"IF(AND(C159<>\"u\",C159<>\"b\"),\"Ange 'u' eller 'b'!\",\"\")","v":""}]
["INDATA"]
["CH4(utsläpp)","ppm",1000,null,"online"]
["Tutsläpp","ºC",null,null,"tid (min):"]
["Differenstryck, pd","Pa",5]
["Gashastighet","m/s"]
["Rör diameter","cm",10]
["KONSTANTER"]
["putsläpp","kPa",101.3]
["Luft densitet","kg/Nm3",1.29]
["RESULTAT"]
["Luft densitet","kg/m3",{"$f":"C168*C167/101.3*273.15/(273.15+C162)","v":1.29}]
["Rör area","m2",{"$f":"(C165/100)^2*0.25*PI()","v":7.8539816339744835E-3}]
["Gashastighet","m/s",{"$f":"IF(AND(C163=\"\",C164=\"\"),0,IF(AND(C163<>\"\",C164<>\"\"),99999,IF(C163=\"\",C164,SQRT(2*C163/C170))))","v":2.7842302319485226},null,{"$f":"IF(C172=99999,\"Ange Pa eller m/s!\",\"\")","v":""}]
["Qutsläpp","l/s",{"$f":"C172*C171*1000","v":21.867293106480211}]
["Qutsläpp","m3/h",{"$f":"C173/1000*60*60","v":78.72225518332877}]
["Qutsläpp","Nm3/h",{"$f":"C174*C167/101.3*273.15/(273.15+C162)","v":78.72225518332877}]
["Momentant utsläpp","Nm3 CH4/h",{"$f":"IF(C159=\"u\",C175*C161/1000000,IF(C159=\"b\",$J$6*C161/1000000,0))","v":7.8722255183328774E-2},null,"RÅGAS",null,"RENGAS"]
["Momentant metanflöde","Nm3 CH4/h",null,null,{"$f":"$E$8","v":600},null,{"$f":"$G$8+$G$15","v":600}]
["Momentan förlust","%",null,null,{"$f":"C176/$E$8*100","v":1.312037586388813E-2},null,{"$f":"C176/($G$8+$G$15)*100","v":1.312037586388813E-2}]
["ÅRSVÄRDEN","Skalning:","p",null,null,{"$f":"IF(AND(C179=\"d\",E179=\"\"),\"Ange drifttid!\",\"\")","v":""}]
["Årligt utsläpp","Nm3 CH4/år",null,null,{"$f":"IF(C179=\"p\",E178/100*E181,IF(C179=\"h\",C176*$E$12,IF(C179=\"d\",C176*E179,0)))","v":0.13120375863888131},null,{"$f":"IF(C179=\"p\",G178/100*G181,IF(C179=\"h\",C176*$E$12,IF(C179=\"d\",C176*E179,0)))","v":7.8722255183328782}]
["Årligt metanflöde","Nm3 CH4/år",null,null,{"$f":"$E$11","v":1000},null,{"$f":"$G$11+$G$17","v":60000}]
["Årlig förlust","%",null,null,{"$f":"100*E180/E181","v":1.3120375863888131E-2},null,{"$f":"100*G180/G181","v":1.3120375863888131E-2}]
[]
["UTSLÄPP (Nm3/år) 1",{"$f":"Val!C15","v":0},null,{"$f":"Val!E15","v":0}]
["INDATA"]
["Utsläpp","Nm3 CH4/år"]
["RESULTAT","Skalning:",null,null,"RÅGAS",null,"RENGAS"]
["Momentant utsläpp","Nm3 CH4/h",null,null,{"$f":"IF(C187=\"p\",E194/100*$E$8,IF(C187=\"h\",C186/$E$12,0))","v":0},null,{"$f":"IF(C187=\"p\",G194/100*($G$8+$G$15),IF(C187=\"h\",C186/$E$12,0))","v":0}]
["Momentant metanflöde","Nm3 CH4/h",null,null,{"$f":"$E$8","v":600},null,{"$f":"$G$8+$G$15","v":600}]
["Momentan förlust","%",null,null,{"$f":"E188/$E$8*100","v":0},null,{"$f":"G188/($G$8+$G$15)*100","v":0}]
["ÅRSVÄRDEN"]
["Årligt utsläpp","Nm3 CH4/år",null,null,{"$f":"C186","v":0},null,{"$f":"C186","v":0}]
["Årligt metanflöde","Nm3 CH4/år",null,null,{"$f":"$E$11","v":1000},null,{"$f":"$G$11+$G$17","v":60000}]
["Årlig förlust","%",null,null,{"$f":"100*E192/E193","v":0},null,{"$f":"100*G192/G193","v":0}]
[]
["UTSLÄPP (Nm3/år) 2",{"$f":"Val!C16","v":0},null,{"$f":"Val!E16","v":0}]
["INDATA"]
["Utsläpp","Nm3 CH4/år"]
["RESULTAT","Skalning:",null,null,"RÅGAS",null,"RENGAS"]
["Momentant utsläpp","Nm3 CH4/h",null,null,{"$f":"IF(C199=\"p\",E206/100*$E$8,IF(C199=\"h\",C198/$E$12,0))","v":0},null,{"$f":"IF(C199=\"p\",G206/100*($G$8+$G$15),IF(C199=\"h\",C198/$E$12,0))","v":0}]
["Momentant metanflöde","Nm3 CH4/h",null,null,{"$f":"$E$8","v":600},null,{"$f":"$G$8+$G$15","v":600}]
["Momentan förlust","%",null,null,{"$f":"E200/$E$8*100","v":0},null,{"$f":"G200/($G$8+$G$15)*100","v":0}]
["ÅRSVÄRDEN"]
["Årligt utsläpp","Nm3 CH4/år",null,null,{"$f":"C198","v":0},null,{"$f":"C198","v":0}]
["Årligt metanflöde","Nm3 CH4/år",null,null,{"$f":"$E$11","v":1000},null,{"$f":"$G$11+$G$17","v":60000}]
["Årlig förlust","%",null,null,{"$f":"100*E204/E205","v":0},null,{"$f":"100*G204/G205","v":0}]
[]
["UTSLÄPP (Nm3/h) 1",{"$f":"Val!C17","v":0},null,{"$f":"Val!E17","v":0}]
["INDATA"]
["Utsläpp","Nm3 CH4/h"]
["RESULTAT"]
["Momentant utsläpp","Nm3 CH4/h",{"$f":"C210","v":0},null,"RÅGAS",null,"RENGAS"]
["Momentant metanflöde","Nm3 CH4/h",null,null,{"$f":"$E$8","v":600},null,{"$f":"$G$8+$G$15","v":600}]
["Momentan förlust","%",null,null,{"$f":"C212/$E$8*100","v":0},null,{"$f":"C212/($G$8+$G$15)*100","v":0}]
["ÅRSVÄRDEN","Skalning:","h",null,null,{"$f":"IF(AND(C215=\"d\",E215=\"\"),\"Ange drifttid!\",\"\")","v":""}]
["Årligt utsläpp","Nm3 CH4/år",null,null,{"$f":"IF(C215=\"p\",E214/100*E217,IF(C215=\"h\",C212*$E$12,IF(C215=\"d\",C212*E215,0)))","v":0},null,{"$f":"IF(C215=\"p\",G214/100*G217,IF(C215=\"h\",C212*$E$12,IF(C215=\"d\",C212*E215,0)))","v":0}]
["Årligt metanflöde","Nm3 CH4/år",null,null,{"$f":"$E$11","v":1000},null,{"$f":"$G$11+$G$17","v":60000}]
["Årlig förlust","%",null,null,{"$f":"100*E216/E217","v":0},null,{"$f":"100*G216/G217","v":0}]
[]
["UTSLÄPP (Nm3/h) 2",{"$f":"Val!C18","v":0},null,{"$f":"Val!E18","v":0}]
["INDATA"]
["Utsläpp","Nm3 CH4/h"]
["RESULTAT"]
["Momentant utsläpp","Nm3 CH4/h",{"$f":"C222","v":0},null,"RÅGAS",null,"RENGAS"]
["Momentant metanflöde","Nm3 CH4/h",null,null,{"$f":"$E$8","v":600},null,{"$f":"$G$8+$G$15","v":600}]
["Momentan förlust","%",null,null,{"$f":"C224/$E$8*100","v":0},null,{"$f":"C224/($G$8+$G$15)*100","v":0}]
["ÅRSVÄRDEN","Skalning:","h",null,null,{"$f":"IF(AND(C227=\"d\",E227=\"\"),\"Ange drifttid!\",\"\")","v":""}]
["Årligt utsläpp","Nm3 CH4/år",null,null,{"$f":"IF(C227=\"p\",E226/100*E229,IF(C227=\"h\",C224*$E$12,IF(C227=\"d\",C224*E227,0)))","v":0},null,{"$f":"IF(C227=\"p\",G226/100*G229,IF(C227=\"h\",C224*$E$12,IF(C227=\"d\",C224*E227,0)))","v":0}]
["Årligt metanflöde","Nm3 CH4/år",null,null,{"$f":"$E$11","v":1000},null,{"$f":"$G$11+$G$17","v":60000}]
["Årlig förlust","%",null,null,{"$f":"100*E228/E229","v":0},null,{"$f":"100*G228/G229","v":0}]
[]
["Uppdatera formeln i E15 och G15 om fler utsläppspunkter läggs till manuellt"]
["Uppdatera formeln i E17 och G17 om fler utsläppspunkter läggs till manuellt"]
["Lösenord: \"EgMet\""]

{"sheet":"Sid 1","index":2,"n_rows":51,"n_cols":3,"rows_kept":51,"cut":false,"hidden":false,"merged":[]}
[]
[null,"Rapport version"]
[null,"Utgåva"]
[null,"Datum"]
[]
[null,"Anläggning"]
[null,"Anläggningsnamn"]
[null,"Adress"]
[null,"Anläggningstyp"]
[null,"Huvudman/ägare"]
[null,"Kontaktperson"]
[null,"Telefon"]
[null,"Email"]
[]
[null,"Utförare av mätning"]
[null,"Företag"]
[null,"Utförare"]
[null,"Telefon"]
[null,"Email"]
[]
[null,"Genomförande av mätning"]
[null,"Mätdatum"]
[null,"Tid"]
[null,"Väderförhållanden"]
[null,"Omgivningstemperatur"]
[null,"Mätinstrument (metan)"]
[null,"Kalibreringsgaser"]
[null,"Mätinstrument (gasflöde)"]
[null,"Kommentar rörande mätning"]
[]
[null,"Läcksökning"]
[null,"Finns rutin?"]
[null,"Intervall"]
[null,"Utrustning"]
[null,"Utfört enligt rutin?"]
[null,"(forts.)"]
[]
[]
[null,"PRODUKTIONSDATA"]
[null,"Driftförhållanden vid mätning"]
[null,"Rågasflöde (Nm3/h)",{"$f":"Beräkningar!E6","v":1000}]
[null,"Rågas metanhalt (vol-%)",{"$f":"Beräkningar!E7","v":60}]
[null,"Rengasflöde (Nm3/h)",{"$f":"Beräkningar!G6","v":600}]
[null,"Rengas metanhalt (vol-%)",{"$f":"Beräkningar!G7","v":100}]
[null,"Kommentar kring driften","Normal"]
[]
[null,"Data gällande årsproduktion"]
[null,"Behandlad rågas (Nm3/år)",{"$f":"Beräkningar!E9","v":100000}]
[null,"Rågas metanhalt (vol-%)",{"$f":"Beräkningar!E10","v":1}]
[null,"Producerad rengas (Nm3/år)",{"$f":"Beräkningar!G9","v":60000}]
[null,"Rengas metanhalt (vol-%)",{"$f":"Beräkningar!G10","v":100}]

{"sheet":"Analysinstrument","index":3,"n_rows":22,"n_cols":8,"rows_kept":22,"cut":false,"hidden":false,"merged":[[21,1,21,7],[15,1,15,7],[1,1,1,7],[3,1,3,7],[14,1,14,7],[20,1,20,7],[8,1,8,7],[2,1,2,7],[4,1,4,7],[5,1,5,7],[6,1,6,7],[7,1,7,7]]}
[]
[null,"Identifikation av utsläppsobjekt"]
[null,{"$f":"Val!C8","v":0}]
[null,"Beskrivning av utsläppsobjekt"]
[null,"Ett litet flöde gas leds kontinuerligt genom anläggningens gasanalysinstrument och vidare till atmosfär."]
[null,"X st rågasflöden och X st rengasflöden har identifierats i anläggningen."]
[null,"Beskrivning av mätningens genomförande"]
[null,"Analyspanelens rotametrar har avlästs."]
[null,"Momentant utsläpp och beräknad förlust (Nm3 CH4/h)"]
[null,"Beräkning sker på momentana (avlästa) värden av metanhalt."]
[null,"Qutsläpp","l/h",{"$f":"Beräkningar!C25","v":0}]
[null,"Momentant utsläpp","Nm3 CH4/h",{"$f":"Beräkningar!C26","v":0}]
[null,"Momentant metanflöde","Nm3 CH4/h",null,null,{"$f":"Beräkningar!E27","v":600},null,{"$f":"Beräkningar!G27","v":600}]
[null,"Momentan förlust","%",null,null,{"$f":"Beräkningar!E28","v":0},null,{"$f":"Beräkningar!G28","v":0}]
[null,"Beräknad kvantifiering av årliga utsläpp (Nm3 CH4/år)"]
[null,"Beräkning sker på årsmedelvärden av metanhalt."]
[]
[null,"Årligt utsläpp","Nm3 CH4/år",{"$f":"Beräkningar!C30","v":0}]
[null,"Årligt metanflöde","Nm3 CH4/år",null,null,{"$f":"Beräkningar!E31","v":1000},null,{"$f":"Beräkningar!G31","v":60000}]
[null,"Årlig förlust","%",null,null,{"$f":"Beräkningar!E32","v":0},null,{"$f":"Beräkningar!G32","v":0}]
[null,"Förslag på åtgärd"]
[null,"Se till att flödena inte är högre än nödvändigt."]

{"sheet":"Ventilation 1","index":4,"n_rows":23,"n_cols":8,"rows_kept":23,"cut":false,"hidden":false,"merged":[[16,1,16,7],[21,1,21,7],[22,1,22,7],[1,1,1,2],[2,1,2,2],[6,1,6,7],[7,1,7,7],[8,1,8,7],[9,1,9,7],[15,1,15,7],[1,3,1,7],[2,3,2,7],[3,1,3,7],[4,1,4,7],[5,1,5,7]]}
[]
[null,"Identifikation av utsläppsobjekt",null,"Ev. lokal benämning/tag"]
[null,{"$f":"Val!C9","v":0},null,{"$f":"IF(Val!E9=\"\",\"-\",Val!E9)","v":"-"}]
[null,"Beskrivning av utsläppsobjekt"]
[]
[]
[null,"Beskrivning av mätningens genomförande"]
[null,{"$f":"_xlfn.SWITCH(Beräkningar!E36,\"online\",CONCATENATE(\"Metanhalt är uppmätt kontinuerligt med FID under \",TEXT(Beräkningar!F37,0),\" min.\"),\"påsprov\",CONCATENATE(\"Metanhalt är uppmätt med FID i påsprov med provtagningstid \",TEXT(Beräkningar!F37,0),\" min\"))","v":"Metanhalt är uppmätt kontinuerligt med FID under 0 min."}]
[null,{"$f":"_xlfn.SWITCH(Beräkningar!E38,\"Schablon 3000 Nm3/h\",\"Flödet är satt till schablonvärde 3000 Nm3/h.\",\"Schablon 6000 Nm3/h\",\"Flödet är satt till schablonvärde 6000 Nm3/h.\",\"Fläktdata m3/h\",\"Flödet är antaget utifrån fläktdata.\",\"Mätning av flöde\",IF(Beräkningar!C38=\"\",\"Flödet är uppmätt med varmtrådsgivare.\",\"Flödet är uppmätt med pitotrör.\"))","v":"Flödet är uppmätt med varmtrådsgivare."}]
[null,"Momentant utsläpp och beräknad förlust (Nm3 CH4/h)"]
[null,"CH4(utsläpp)","ppm",{"$f":"Beräkningar!C36","v":0}]
[null,"Qutsläpp","Nm3/h",{"$f":"Beräkningar!C50","v":0}]
[null,"Momentant utsläpp","Nm3 CH4/h",{"$f":"Beräkningar!C51","v":0}]
[null,"Momentant metanflöde","Nm3 CH4/h",null,null,{"$f":"Beräkningar!E52","v":600},null,{"$f":"Beräkningar!G52","v":600}]
[null,"Momentan förlust","%",null,null,{"$f":"Beräkningar!E53","v":0},null,{"$f":"Beräkningar!G57","v":0}]
[null,"Beräknad kvantifiering av årliga utsläpp (Nm3 CH4/år)"]
[null,{"$f":"_xlfn.SWITCH(Beräkningar!C54,\"p\",\"Utsläppet antas variera relativt produktionen i anläggningen\",\"h\",\"Utsläppet antas vara konstant under årets alla drifttimmar för anläggningen\",\"d\",\"Utsläppet antas vara konstant under delanläggningens/utsläppspunktens drifttimmar\")","v":"Utsläppet antas vara konstant under årets alla drifttimmar för anläggningen"}]
[]
[null,"Årligt utsläpp","Nm3 CH4/år",null,null,{"$f":"Beräkningar!E55","v":0},null,{"$f":"Beräkningar!G55","v":0}]
[null,"Årligt metanflöde","Nm3 CH4/år",null,null,{"$f":"Beräkningar!E56","v":1000},null,{"$f":"Beräkningar!G56","v":60000}]
[null,"Årlig förlust","%",null,null,{"$f":"Beräkningar!E57","v":0},null,{"$f":"Beräkningar!G57","v":0}]
[null,"Förslag på åtgärd"]
[null,"Läcksökning och åtgärdande av funna läckor."]

{"sheet":"Ventilation 2","index":5,"n_rows":23,"n_cols":8,"rows_kept":23,"cut":false,"hidden":false,"merged":[[22,1,22,7],[7,1,7,7],[8,1,8,7],[9,1,9,7],[15,1,15,7],[16,1,16,7],[21,1,21,7],[6,1,6,7],[3,1,3,7],[4,1,4,7],[5,1,5,7],[1,1,1,2],[1,3,1,7],[2,1,2,2],[2,3,2,7]]}
[]
[null,"Identifikation av utsläppsobjekt",null,"Ev. lokal benämning/tag"]
[null,{"$f":"Val!C10","v":0},null,{"$f":"IF(Val!E10=\"\",\"-\",Val!E10)","v":"-"}]
[null,"Beskrivning av utsläppsobjekt"]
[]
[]
[null,"Beskrivning av mätningens genomförande"]
[null,{"$f":"_xlfn.SWITCH(Beräkningar!E61,\"online\",CONCATENATE(\"Metanhalt är uppmätt kontinuerligt med FID under \",TEXT(Beräkningar!F62,0),\" min.\"),\"påsprov\",CONCATENATE(\"Metanhalt är uppmätt med FID i påsprov med provtagningstid \",TEXT(Beräkningar!F62,0),\" min\"))","v":"Metanhalt är uppmätt kontinuerligt med FID under 0 min."}]
[null,{"$f":"_xlfn.SWITCH(Beräkningar!E63,\"Schablon 3000 Nm3/h\",\"Flödet är satt till schablonvärde 3000 Nm3/h.\",\"Schablon 6000 Nm3/h\",\"Flödet är satt till schablonvärde 6000 Nm3/h.\",\"Fläktdata m3/h\",\"Flödet är antaget utifrån fläktdata.\",\"Mätning av flöde\",IF(Beräkningar!C63=\"\",\"Flödet är uppmätt med varmtrådsgivare.\",\"Flödet är uppmätt med pitotrör.\"))","v":"Flödet är uppmätt med varmtrådsgivare."}]
[null,"Momentant utsläpp och beräknad förlust (Nm3 CH4/h)"]
[null,"CH4(utsläpp)","ppm",{"$f":"Beräkningar!C61","v":0}]
[null,"Qutsläpp","Nm3/h",{"$f":"Beräkningar!C75","v":0}]
[null,"Momentant utsläpp","Nm3 CH4/h",{"$f":"Beräkningar!C76","v":0}]
[null,"Momentant metanflöde","Nm3 CH4/h",null,null,{"$f":"Beräkningar!E77","v":600},null,{"$f":"Beräkningar!G77","v":600}]
[null,"Momentan förlust","%",null,null,{"$f":"Beräkningar!E78","v":0},null,{"$f":"Beräkningar!G78","v":0}]
[null,"Beräknad kvantifiering av årliga utsläpp (Nm3 CH4/år)"]
[null,{"$f":"_xlfn.SWITCH(Beräkningar!C79,\"p\",\"Utsläppet antas variera relativt produktionen i anläggningen\",\"h\",\"Utsläppet antas vara konstant under årets alla drifttimmar för anläggningen\",\"d\",\"Utsläppet antas vara konstant under delanläggningens/utsläppspunktens drifttimmar\")","v":"Utsläppet antas vara konstant under årets alla drifttimmar för anläggningen"}]
[]
[null,"Årligt utsläpp","Nm3 CH4/år",null,null,{"$f":"Beräkningar!E80","v":0},null,{"$f":"Beräkningar!G80","v":0}]
[null,"Årligt metanflöde","Nm3 CH4/år",null,null,{"$f":"Beräkningar!E81","v":1000},null,{"$f":"Beräkningar!G81","v":60000}]
[null,"Årlig förlust","%",null,null,{"$f":"Beräkningar!E82","v":0},null,{"$f":"Beräkningar!G82","v":0}]
[null,"Förslag på åtgärd"]
[null,"Läcksökning och åtgärdande av funna läckor."]

{"sheet":"Ventilation 3","index":6,"n_rows":23,"n_cols":8,"rows_kept":23,"cut":false,"hidden":false,"merged":[[22,1,22,7],[7,1,7,7],[8,1,8,7],[9,1,9,7],[15,1,15,7],[16,1,16,7],[21,1,21,7],[6,1,6,7],[3,1,3,7],[4,1,4,7],[5,1,5,7],[1,1,1,2],[1,3,1,7],[2,1,2,2],[2,3,2,7]]}
[]
[null,"Identifikation av utsläppsobjekt",null,"Ev. lokal benämning/tag"]
[null,{"$f":"Val!C11","v":0},null,{"$f":"IF(Val!E11=\"\",\"-\",Val!E11)","v":"-"}]
[null,"Beskrivning av utsläppsobjekt"]
[]
[]
[null,"Beskrivning av mätningens genomförande"]
[null,{"$f":"_xlfn.SWITCH(Beräkningar!E86,\"online\",CONCATENATE(\"Metanhalt är uppmätt kontinuerligt med FID under \",TEXT(Beräkningar!F87,0),\" min.\"),\"påsprov\",CONCATENATE(\"Metanhalt är uppmätt med FID i påsprov med provtagningstid \",TEXT(Beräkningar!F87,0),\" min\"))","v":"Metanhalt är uppmätt kontinuerligt med FID under 0 min."}]
[null,{"$f":"_xlfn.SWITCH(Beräkningar!E88,\"Schablon 3000 Nm3/h\",\"Flödet är satt till schablonvärde 3000 Nm3/h.\",\"Schablon 6000 Nm3/h\",\"Flödet är satt till schablonvärde 6000 Nm3/h.\",\"Fläktdata m3/h\",\"Flödet är antaget utifrån fläktdata.\",\"Mätning av flöde\",IF(Beräkningar!C88=\"\",\"Flödet är uppmätt med varmtrådsgivare.\",\"Flödet är uppmätt med pitotrör.\"))","v":"Flödet är uppmätt med varmtrådsgivare."}]
[null,"Momentant utsläpp och beräknad förlust (Nm3 CH4/h)"]
[null,"CH4(utsläpp)","ppm",{"$f":"Beräkningar!C86","v":0}]
[null,"Qutsläpp","Nm3/h",{"$f":"Beräkningar!C100","v":0}]
[null,"Momentant utsläpp","Nm3 CH4/h",{"$f":"Beräkningar!C101","v":0}]
[null,"Momentant metanflöde","Nm3 CH4/h",null,null,{"$f":"Beräkningar!E102","v":600},null,{"$f":"Beräkningar!G102","v":600}]
[null,"Momentan förlust","%",null,null,{"$f":"Beräkningar!E103","v":0},null,{"$f":"Beräkningar!G103","v":0}]
[null,"Beräknad kvantifiering av årliga utsläpp (Nm3 CH4/år)"]
[null,{"$f":"_xlfn.SWITCH(Beräkningar!C104,\"p\",\"Utsläppet antas variera relativt produktionen i anläggningen\",\"h\",\"Utsläppet antas vara konstant under årets alla drifttimmar för anläggningen\",\"d\",\"Utsläppet antas vara konstant under delanläggningens/utsläppspunktens drifttimmar\")","v":"Utsläppet antas vara konstant under årets alla drifttimmar för anläggningen"}]
[]
[null,"Årligt utsläpp","Nm3 CH4/år",null,null,{"$f":"Beräkningar!E105","v":0},null,{"$f":"Beräkningar!G105","v":0}]
[null,"Årligt metanflöde","Nm3 CH4/år",null,null,{"$f":"Beräkningar!E106","v":1000},null,{"$f":"Beräkningar!G106","v":60000}]
[null,"Årlig förlust","%",null,null,{"$f":"Beräkningar!E107","v":0},null,{"$f":"Beräkningar!G107","v":0}]
[null,"Förslag på åtgärd"]
[null,"Läcksökning och åtgärdande av funna läckor."]

{"sheet":"Ventilation 4","index":7,"n_rows":23,"n_cols":8,"rows_kept":23,"cut":false,"hidden":false,"merged":[[22,1,22,7],[7,1,7,7],[8,1,8,7],[9,1,9,7],[15,1,15,7],[16,1,16,7],[21,1,21,7],[6,1,6,7],[3,1,3,7],[4,1,4,7],[5,1,5,7],[1,1,1,2],[1,3,1,7],[2,1,2,2],[2,3,2,7]]}
[]
[null,"Identifikation av utsläppsobjekt",null,"Ev. lokal benämning/tag"]
[null,{"$f":"Val!C12","v":0},null,{"$f":"IF(Val!E12=\"\",\"-\",Val!E12)","v":"-"}]
[null,"Beskrivning av utsläppsobjekt"]
[]
[]
[null,"Beskrivning av mätningens genomförande"]
[null,{"$f":"_xlfn.SWITCH(Beräkningar!E111,\"online\",CONCATENATE(\"Metanhalt är uppmätt kontinuerligt med FID under \",TEXT(Beräkningar!F112,0),\" min.\"),\"påsprov\",CONCATENATE(\"Metanhalt är uppmätt med FID i påsprov med provtagningstid \",TEXT(Beräkningar!F112,0),\" min\"))","v":"Metanhalt är uppmätt kontinuerligt med FID under 0 min."}]
[null,{"$f":"_xlfn.SWITCH(Beräkningar!E113,\"Schablon 3000 Nm3/h\",\"Flödet är satt till schablonvärde 3000 Nm3/h.\",\"Schablon 6000 Nm3/h\",\"Flödet är satt till schablonvärde 6000 Nm3/h.\",\"Fläktdata m3/h\",\"Flödet är antaget utifrån fläktdata.\",\"Mätning av flöde\",IF(Beräkningar!C113=\"\",\"Flödet är uppmätt med varmtrådsgivare.\",\"Flödet är uppmätt med pitotrör.\"))","v":"Flödet är uppmätt med varmtrådsgivare."}]
[null,"Momentant utsläpp och beräknad förlust (Nm3 CH4/h)"]
[null,"CH4(utsläpp)","ppm",{"$f":"Beräkningar!C111","v":0}]
[null,"Qutsläpp","Nm3/h",{"$f":"Beräkningar!C125","v":0}]
[null,"Momentant utsläpp","Nm3 CH4/h",{"$f":"Beräkningar!C126","v":0}]
[null,"Momentant metanflöde","Nm3 CH4/h",null,null,{"$f":"Beräkningar!E127","v":600},null,{"$f":"Beräkningar!G127","v":600}]
[null,"Momentan förlust","%",null,null,{"$f":"Beräkningar!E128","v":0},null,{"$f":"Beräkningar!G128","v":0}]
[null,"Beräknad kvantifiering av årliga utsläpp (Nm3 CH4/år)"]
[null,{"$f":"_xlfn.SWITCH(Beräkningar!C129,\"p\",\"Utsläppet antas variera relativt produktionen i anläggningen\",\"h\",\"Utsläppet antas vara konstant under årets alla drifttimmar för anläggningen\",\"d\",\"Utsläppet antas vara konstant under delanläggningens/utsläppspunktens drifttimmar\")","v":"Utsläppet antas vara konstant under årets alla drifttimmar för anläggningen"}]
[]
[null,"Årligt utsläpp","Nm3 CH4/år",null,null,{"$f":"Beräkningar!E130","v":0},null,{"$f":"Beräkningar!G130","v":0}]
[null,"Årligt metanflöde","Nm3 CH4/år",null,null,{"$f":"Beräkningar!E131","v":1000},null,{"$f":"Beräkningar!G131","v":60000}]
[null,"Årlig förlust","%",null,null,{"$f":"Beräkningar!E132","v":0},null,{"$f":"Beräkningar!G132","v":0}]
[null,"Förslag på åtgärd"]
[null,"Läcksökning och åtgärdande av funna läckor."]

{"sheet":"Ventilation 5","index":8,"n_rows":23,"n_cols":8,"rows_kept":23,"cut":false,"hidden":false,"merged":[[22,1,22,7],[7,1,7,7],[8,1,8,7],[9,1,9,7],[15,1,15,7],[16,1,16,7],[21,1,21,7],[6,1,6,7],[3,1,3,7],[4,1,4,7],[5,1,5,7],[1,1,1,2],[1,3,1,7],[2,1,2,2],[2,3,2,7]]}
[]
[null,"Identifikation av utsläppsobjekt",null,"Ev. lokal benämning/tag"]
[null,{"$f":"Val!C13","v":0},null,{"$f":"IF(Val!E13=\"\",\"-\",Val!E13)","v":"-"}]
[null,"Beskrivning av utsläppsobjekt"]
[]
[]
[null,"Beskrivning av mätningens genomförande"]
[null,{"$f":"_xlfn.SWITCH(Beräkningar!E136,\"online\",CONCATENATE(\"Metanhalt är uppmätt kontinuerligt med FID under \",TEXT(Beräkningar!F137,0),\" min.\"),\"påsprov\",CONCATENATE(\"Metanhalt är uppmätt med FID i påsprov med provtagningstid \",TEXT(Beräkningar!F137,0),\" min\"))","v":"Metanhalt är uppmätt kontinuerligt med FID under 0 min."}]
[null,{"$f":"_xlfn.SWITCH(Beräkningar!E138,\"Schablon 3000 Nm3/h\",\"Flödet är satt till schablonvärde 3000 Nm3/h.\",\"Schablon 6000 Nm3/h\",\"Flödet är satt till schablonvärde 6000 Nm3/h.\",\"Fläktdata m3/h\",\"Flödet är antaget utifrån fläktdata.\",\"Mätning av flöde\",IF(Beräkningar!C138=\"\",\"Flödet är uppmätt med varmtrådsgivare.\",\"Flödet är uppmätt med pitotrör.\"))","v":"Flödet är uppmätt med varmtrådsgivare."}]
[null,"Momentant utsläpp och beräknad förlust (Nm3 CH4/h)"]
[null,"CH4(utsläpp)","ppm",{"$f":"Beräkningar!C136","v":0}]
[null,"Qutsläpp","Nm3/h",{"$f":"Beräkningar!C150","v":0}]
[null,"Momentant utsläpp","Nm3 CH4/h",{"$f":"Beräkningar!C151","v":0}]
[null,"Momentant metanflöde","Nm3 CH4/h",null,null,{"$f":"Beräkningar!E152","v":600},null,{"$f":"Beräkningar!G152","v":600}]
[null,"Momentan förlust","%",null,null,{"$f":"Beräkningar!E153","v":0},null,{"$f":"Beräkningar!G153","v":0}]
[null,"Beräknad kvantifiering av årliga utsläpp (Nm3 CH4/år)"]
[null,{"$f":"_xlfn.SWITCH(Beräkningar!C154,\"p\",\"Utsläppet antas variera relativt produktionen i anläggningen\",\"h\",\"Utsläppet antas vara konstant under årets alla drifttimmar för anläggningen\",\"d\",\"Utsläppet antas vara konstant under delanläggningens/utsläppspunktens drifttimmar\")","v":"Utsläppet antas vara konstant under årets alla drifttimmar för anläggningen"}]
[]
[null,"Årligt utsläpp","Nm3 CH4/år",null,null,{"$f":"Beräkningar!E155","v":0},null,{"$f":"Beräkningar!G155","v":0}]
[null,"Årligt metanflöde","Nm3 CH4/år",null,null,{"$f":"Beräkningar!E156","v":1000},null,{"$f":"Beräkningar!G156","v":60000}]
[null,"Årlig förlust","%",null,null,{"$f":"Beräkningar!E157","v":0},null,{"$f":"Beräkningar!G157","v":0}]
[null,"Förslag på åtgärd"]
[null,"Läcksökning och åtgärdande av funna läckor."]

{"sheet":"Metanslip","index":9,"n_rows":22,"n_cols":8,"rows_kept":22,"cut":false,"hidden":false,"merged":[[22,1,22,7],[7,1,7,7],[8,1,8,7],[9,1,9,7],[15,1,15,7],[16,1,16,7],[21,1,21,7],[6,1,6,7],[3,1,3,7],[4,1,4,7],[5,1,5,7],[1,1,1,2],[1,3,1,7],[2,1,2,2],[2,3,2,7]]}
[]
[null,"Identifikation av utsläppsobjekt",null,"Ev. lokal benämning/tag"]
[null,{"$f":"Val!C14","v":0},null,{"$f":"IF(Val!E14=\"\",\"-\",Val!E14)","v":"-"}]
[null,"Beskrivning av utsläppsobjekt"]
[]
[]
[null,"Beskrivning av mätningens genomförande"]
[null,{"$f":"_xlfn.SWITCH(Beräkningar!E161,\"online\",CONCATENATE(\"Metanhalt är uppmätt kontinuerligt med FID under \",TEXT(Beräkningar!F162,0),\" min.\"),\"påsprov\",CONCATENATE(\"Metanhalt är uppmätt med FID i påsprov med provtagningstid \",TEXT(Beräkningar!F162,0),\" min\"))","v":"Metanhalt är uppmätt kontinuerligt med FID under 0 min."}]
[null,{"$f":"IF(Beräkningar!C159=\"u\",IF(Beräkningar!C163=\"\",\"Flödet är uppmätt med varmtrådsgivare.\",\"Flödet är uppmätt med pitotrör.\"),IF(Beräkningar!C159=\"b\",\"Flödet beräknas utifrån anläggningens angivna rengasflöde och metanhalter.\",\"-\"))","v":"Flödet är uppmätt med pitotrör."}]
[null,"Momentant utsläpp och beräknad förlust (Nm3 CH4/h)"]
[null,"CH4(utsläpp)","ppm",{"$f":"Beräkningar!C161","v":1000}]
[null,"Qutsläpp","Nm3/h",{"$f":"IF(Beräkningar!C159=\"u\",Beräkningar!C175,IF(Beräkningar!C159=\"b\",Beräkningar!J6,\"-\"))","v":78.72225518332877}]
[null,"Momentant utsläpp","Nm3 CH4/h",{"$f":"Beräkningar!C176","v":7.8722255183328774E-2}]
[null,"Momentant metanflöde","Nm3 CH4/h",null,null,{"$f":"Beräkningar!E177","v":600},null,{"$f":"Beräkningar!G177","v":600}]
[null,"Momentan förlust","%",null,null,{"$f":"Beräkningar!E178","v":1.312037586388813E-2},null,{"$f":"Beräkningar!G178","v":1.312037586388813E-2}]
[null,"Beräknad kvantifiering av årliga utsläpp (Nm3 CH4/år)"]
[null,{"$f":"_xlfn.SWITCH(Beräkningar!C179,\"p\",\"Utsläppet antas variera relativt produktionen i anläggningen\",\"h\",\"Utsläppet antas vara konstant under årets alla drifttimmar för anläggningen\",\"d\",\"Utsläppet antas vara konstant under delanläggningens/utsläppspunktens drifttimmar\")","v":"Utsläppet antas variera relativt produktionen i anläggningen"}]
[]
[null,"Årligt utsläpp","Nm3 CH4/år",null,null,{"$f":"Beräkningar!E180","v":0.13120375863888131},null,{"$f":"Beräkningar!G180","v":7.8722255183328782}]
[null,"Årligt metanflöde","Nm3 CH4/år",null,null,{"$f":"Beräkningar!E181","v":1000},null,{"$f":"Beräkningar!G181","v":60000}]
[null,"Årlig förlust","%",null,null,{"$f":"Beräkningar!E182","v":1.3120375863888131E-2},null,{"$f":"Beräkningar!G182","v":1.3120375863888131E-2}]
[null,"Förslag på åtgärd"]

{"sheet":"Utsläpp år 1","index":10,"n_rows":22,"n_cols":8,"rows_kept":22,"cut":false,"hidden":false,"merged":[[22,1,22,7],[7,1,7,7],[8,1,8,7],[9,1,9,7],[15,1,15,7],[16,1,16,7],[21,1,21,7],[6,1,6,7],[3,1,3,7],[4,1,4,7],[5,1,5,7],[1,1,1,2],[1,3,1,7],[2,1,2,2],[2,3,2,7]]}
[]
[null,"Identifikation av utsläppsobjekt",null,"Ev. lokal benämning/tag"]
[null,{"$f":"Val!C15","v":0},null,{"$f":"IF(Val!E15=\"\",\"-\",Val!E15)","v":"-"}]
[null,"Beskrivning av utsläppsobjekt"]
[]
[]
[null,"Beskrivning av mätningens genomförande"]
[]
[]
[null,"Momentant utsläpp och beräknad förlust (Nm3 CH4/h)"]
[null,{"$f":"IF(Beräkningar!C187=\"p\",\"Utsläppet antas variera relativt produktionen i anläggningen\",IF(Beräkningar!C187=\"h\",\"Utsläppet antas vara konstant över årets alla drifttimmar\",\"Görs ej\"))","v":"Görs ej"}]
[]
[null,"Momentant utsläpp","Nm3 CH4/h",null,null,{"$f":"Beräkningar!E188","v":0},null,{"$f":"Beräkningar!G188","v":0}]
[null,"Momentant metanflöde","Nm3 CH4/h",null,null,{"$f":"Beräkningar!E189","v":600},null,{"$f":"Beräkningar!G189","v":600}]
[null,"Momentan förlust","%",null,null,{"$f":"Beräkningar!E190","v":0},null,{"$f":"Beräkningar!G190","v":0}]
[null,"Beräknad kvantifiering av årliga utsläpp (Nm3 CH4/år)"]
[]
[]
[null,"Årligt utsläpp","Nm3 CH4/år",null,null,{"$f":"Beräkningar!E192","v":0},null,{"$f":"Beräkningar!G192","v":0}]
[null,"Årligt metanflöde","Nm3 CH4/år",null,null,{"$f":"Beräkningar!E193","v":1000},null,{"$f":"Beräkningar!G193","v":60000}]
[null,"Årlig förlust","%",null,null,{"$f":"Beräkningar!E194","v":0},null,{"$f":"Beräkningar!G194","v":0}]
[null,"Förslag på åtgärd"]

{"sheet":"Utsläpp år 2","index":11,"n_rows":22,"n_cols":8,"rows_kept":22,"cut":false,"hidden":false,"merged":[[22,1,22,7],[7,1,7,7],[8,1,8,7],[9,1,9,7],[15,1,15,7],[16,1,16,7],[21,1,21,7],[6,1,6,7],[3,1,3,7],[4,1,4,7],[5,1,5,7],[1,1,1,2],[1,3,1,7],[2,1,2,2],[2,3,2,7]]}
[]
[null,"Identifikation av utsläppsobjekt",null,"Ev. lokal benämning/tag"]
[null,{"$f":"Val!C16","v":0},null,{"$f":"IF(Val!E16=\"\",\"-\",Val!E16)","v":"-"}]
[null,"Beskrivning av utsläppsobjekt"]
[]
[]
[null,"Beskrivning av mätningens genomförande"]
[]
[]
[null,"Momentant utsläpp och beräknad förlust (Nm3 CH4/h)"]
[null,{"$f":"IF(Beräkningar!C199=\"p\",\"Utsläppet antas variera relativt produktionen i anläggningen\",IF(Beräkningar!C199=\"h\",\"Utsläppet antas vara konstant över årets alla drifttimmar\",\"Görs ej\"))","v":"Görs ej"}]
[]
[null,"Momentant utsläpp","Nm3 CH4/h",null,null,{"$f":"Beräkningar!E200","v":0},null,{"$f":"Beräkningar!G200","v":0}]
[null,"Momentant metanflöde","Nm3 CH4/h",null,null,{"$f":"Beräkningar!E201","v":600},null,{"$f":"Beräkningar!G201","v":600}]
[null,"Momentan förlust","%",null,null,{"$f":"Beräkningar!E202","v":0},null,{"$f":"Beräkningar!G202","v":0}]
[null,"Beräknad kvantifiering av årliga utsläpp (Nm3 CH4/år)"]
[]
[]
[null,"Årligt utsläpp","Nm3 CH4/år",null,null,{"$f":"Beräkningar!E204","v":0},null,{"$f":"Beräkningar!G204","v":0}]
[null,"Årligt metanflöde","Nm3 CH4/år",null,null,{"$f":"Beräkningar!E205","v":1000},null,{"$f":"Beräkningar!G205","v":60000}]
[null,"Årlig förlust","%",null,null,{"$f":"Beräkningar!E206","v":0},null,{"$f":"Beräkningar!G206","v":0}]
[null,"Förslag på åtgärd"]

{"sheet":"Utsläpp h 1","index":12,"n_rows":22,"n_cols":8,"rows_kept":22,"cut":false,"hidden":false,"merged":[[22,1,22,7],[7,1,7,7],[8,1,8,7],[9,1,9,7],[15,1,15,7],[16,1,16,7],[21,1,21,7],[6,1,6,7],[3,1,3,7],[4,1,4,7],[5,1,5,7],[1,1,1,2],[1,3,1,7],[2,1,2,2],[2,3,2,7]]}
[]
[null,"Identifikation av utsläppsobjekt",null,"Ev. lokal benämning/tag"]
[null,{"$f":"Val!C17","v":0},null,{"$f":"IF(Val!E17=\"\",\"-\",Val!E17)","v":"-"}]
[null,"Beskrivning av utsläppsobjekt"]
[]
[]
[null,"Beskrivning av mätningens genomförande"]
[]
[]
[null,"Momentant utsläpp och beräknad förlust (Nm3 CH4/h)"]
[]
[]
[null,"Momentant utsläpp","Nm3 CH4/h",{"$f":"Beräkningar!C212","v":0}]
[null,"Momentant metanflöde","Nm3 CH4/h",null,null,{"$f":"Beräkningar!E213","v":600},null,{"$f":"Beräkningar!G213","v":600}]
[null,"Momentan förlust","%",null,null,{"$f":"Beräkningar!E214","v":0},null,{"$f":"Beräkningar!G214","v":0}]
[null,"Beräknad kvantifiering av årliga utsläpp (Nm3 CH4/år)"]
[null,{"$f":"_xlfn.SWITCH(Beräkningar!C215,\"p\",\"Utsläppet antas variera relativt produktionen i anläggningen\",\"h\",\"Utsläppet antas vara konstant under årets alla drifttimmar för anläggningen\",\"d\",\"Utsläppet antas vara konstant under delanläggningens/utsläppspunktens drifttimmar\")","v":"Utsläppet antas vara konstant under årets alla drifttimmar för anläggningen"}]
[]
[null,"Årligt utsläpp","Nm3 CH4/år",null,null,{"$f":"Beräkningar!E216","v":0},null,{"$f":"Beräkningar!G216","v":0}]
[null,"Årligt metanflöde","Nm3 CH4/år",null,null,{"$f":"Beräkningar!E217","v":1000},null,{"$f":"Beräkningar!G217","v":60000}]
[null,"Årlig förlust","%",null,null,{"$f":"Beräkningar!E218","v":0},null,{"$f":"Beräkningar!G218","v":0}]
[null,"Förslag på åtgärd"]

{"sheet":"Utsläpp h 2","index":13,"n_rows":22,"n_cols":8,"rows_kept":22,"cut":false,"hidden":false,"merged":[[22,1,22,7],[7,1,7,7],[8,1,8,7],[9,1,9,7],[15,1,15,7],[16,1,16,7],[21,1,21,7],[6,1,6,7],[3,1,3,7],[4,1,4,7],[5,1,5,7],[1,1,1,2],[1,3,1,7],[2,1,2,2],[2,3,2,7]]}
[]
[null,"Identifikation av utsläppsobjekt",null,"Ev. lokal benämning/tag"]
[null,{"$f":"Val!C18","v":0},null,{"$f":"IF(Val!E18=\"\",\"-\",Val!E18)","v":"-"}]
[null,"Beskrivning av utsläppsobjekt"]
[]
[]
[null,"Beskrivning av mätningens genomförande"]
[]
[]
[null,"Momentant utsläpp och beräknad förlust (Nm3 CH4/h)"]
[]
[]
[null,"Momentant utsläpp","Nm3 CH4/h",{"$f":"Beräkningar!C224","v":0}]
[null,"Momentant metanflöde","Nm3 CH4/h",null,null,{"$f":"Beräkningar!E225","v":600},null,{"$f":"Beräkningar!G225","v":600}]
[null,"Momentan förlust","%",null,null,{"$f":"Beräkningar!E226","v":0},null,{"$f":"Beräkningar!G226","v":0}]
[null,"Beräknad kvantifiering av årliga utsläpp (Nm3 CH4/år)"]
[null,{"$f":"_xlfn.SWITCH(Beräkningar!C227,\"p\",\"Utsläppet antas variera relativt produktionen i anläggningen\",\"h\",\"Utsläppet antas vara konstant under årets alla drifttimmar för anläggningen\",\"d\",\"Utsläppet antas vara konstant under delanläggningens/utsläppspunktens drifttimmar\")","v":"Utsläppet antas vara konstant under årets alla drifttimmar för anläggningen"}]
[]
[null,"Årligt utsläpp","Nm3 CH4/år",null,null,{"$f":"Beräkningar!E228","v":0},null,{"$f":"Beräkningar!G228","v":0}]
[null,"Årligt metanflöde","Nm3 CH4/år",null,null,{"$f":"Beräkningar!E229","v":1000},null,{"$f":"Beräkningar!G229","v":60000}]
[null,"Årlig förlust","%",null,null,{"$f":"Beräkningar!E230","v":0},null,{"$f":"Beräkningar!G230","v":0}]
[null,"Förslag på åtgärd"]

{"sheet":"Bilaga","index":14,"n_rows":31,"n_cols":3,"rows_kept":31,"cut":false,"hidden":false,"merged":[]}
[]
[null,"Årsutsläpp"]
[null,"Uppmätta utsläppsmängder gäller vid mätningens genomförande. Tre olika principer används för att"]
[null,"skala upp de momentant uppmätta utsläppen till att gälla årliga utsläpp:"]
[]
[null,"p","Utsläppet varierar relativt gasproduktionen i anläggningen"]
[]
[null,null,"Den momentana förlusten i procent beräknas vid mätningstillfället relativt"]
[null,null,"den aktuella gasproduktionen i anläggningen. Den momentanta förlusten"]
[null,null,"antas vara samma som den årliga förlusten, i procent."]
[]
[null,"h","Konstant utsläpp under hela anläggningens årliga drifttimmar"]
[]
[null,null,"Det uppmätta momentana utsläppet (Nm3/h) antas gälla under årets alla"]
[null,null,"drifttimmar. Utsläppet antas därmed ej vara beroende av gasproduktionen."]
[]
[null,"d","Konstant utsläpp under delanläggningens årliga drifttimmar"]
[]
[null,null,"Det uppmätta momentana utsläppet (Nm3/h) antas gälla under årets alla"]
[null,null,"drifttimmar för den aktuella delanläggningen/utsläppspunkten. Utsläppet"]
[null,null,"antas därmed ej vara beroende av gasproduktionen."]
[]
[null,"Tillämpad princip anges i respektive resultatsammanställning i rapporten."]
[]
[null,"Mätosäkerhet"]
[null,"Mätosäkerheterna varierar till stor grad mellan olika utsläppspunkter och anläggningar och är bland"]
[null,"annat beroende av raksträckor vid mätpunkterna, flödesprofilen, analysinstrumenten, kalibrergaser,"]
[null,"interferenser med andra ämnen etc. En stor osäkerhetskälla är också den tidsmässiga variationen i "]
[null,"utsläpp i respektive mätpunkt."]
[]
[null,"Specifika kommentarer kring den aktuella mätningen"]

{"sheet":"Protokoll 1","index":15,"n_rows":35,"n_cols":5,"rows_kept":35,"cut":false,"hidden":false,"merged":[[10,1,10,2],[11,1,11,2],[12,1,12,2],[13,1,13,2],[14,1,14,2],[6,2,6,3],[8,0,9,0],[5,2,5,3],[1,2,1,3],[2,2,2,3],[4,2,4,3],[8,1,8,2],[9,1,9,2],[3,2,3,3],[4,0,6,1],[35,1,35,4],[31,2,31,4],[30,1,31,1],[28,2,28,4],[29,2,29,4],[15,1,15,2],[27,2,27,4],[30,2,30,4],[34,1,34,4],[17,1,17,2],[18,1,18,2],[19,1,19,2],[20,1,20,2],[16,1,16,2]]}
[]
["Rapport utgåva",{"$f":"'Sid 1'!$C$3","v":0},"Anläggningsnamn:",null,{"$f":"'Sid 1'!$C$7","v":0}]
["Rapport datum",{"$f":"'Sid 1'!$C$4","v":"00:00:00"},"Uppgraderingsteknik:",null,{"$f":"'Sid 1'!$C$9","v":0}]
["Mätning datum",{"$f":"'Sid 1'!$C$22","v":"00:00:00"},"Mätföretag:",null,{"$f":"'Sid 1'!$C$16","v":0}]
["[plats för logotyp mätföretag]",null,"Utförare:",null,{"$f":"'Sid 1'!$C$17","v":0}]
[null,null,"Telefon:",null,{"$f":"'Sid 1'!$C$18","v":0}]
[null,null,"E-post:",null,{"$f":"'Sid 1'!$C$19","v":0}]
[]
["Utsläpps-\nobjekt","Ev. lokal benämning/tag",null,"Skaln.","Kvantifiering "]
[null,null,null,null,"CH4 Nm3/år"]
[{"$f":"Val!$C$8","v":0},{"$f":"IF(Val!$E$8=\"\",\"\",Val!$E$8)","v":""},null,null,{"$f":"IF(Val!$C8<>\"\",Beräkningar!C30,\"\")","v":""}]
[{"$f":"Val!$C$9","v":0},{"$f":"IF(Val!$E$9=\"\",\"\",Val!$E$9)","v":""},null,{"$f":"IF(Val!$C9<>\"\",Beräkningar!C54,\"\")","v":""},{"$f":"IF(Val!$C9<>\"\",Beräkningar!G55,\"\")","v":""}]
[{"$f":"Val!$C$10","v":0},{"$f":"IF(Val!$E$10=\"\",\"\",Val!$E$10)","v":""},null,{"$f":"IF(Val!$C10<>\"\",Beräkningar!C79,\"\")","v":""},{"$f":"IF(Val!$C10<>\"\",Beräkningar!G80,\"\")","v":""}]
[{"$f":"Val!$C$11","v":0},{"$f":"IF(Val!$E$11=\"\",\"\",Val!$E$11)","v":""},null,{"$f":"IF(Val!$C11<>\"\",Beräkningar!C104,\"\")","v":""},{"$f":"IF(Val!$C11<>\"\",Beräkningar!G105,\"\")","v":""}]
[{"$f":"Val!$C$12","v":0},{"$f":"IF(Val!$E$12=\"\",\"\",Val!$E$12)","v":""},null,{"$f":"IF(Val!$C12<>\"\",Beräkningar!C129,\"\")","v":""},{"$f":"IF(Val!$C12<>\"\",Beräkningar!G130,\"\")","v":""}]
[{"$f":"Val!$C$13","v":0},{"$f":"IF(Val!$E$13=\"\",\"\",Val!$E$13)","v":""},null,{"$f":"IF(Val!$C13<>\"\",Beräkningar!C154,\"\")","v":""},{"$f":"IF(Val!$C13<>\"\",Beräkningar!G155,\"\")","v":""}]
[{"$f":"Val!$C$14","v":0},{"$f":"IF(Val!$E$14=\"\",\"\",Val!$E$14)","v":""},null,{"$f":"IF(Val!$C14<>\"\",Beräkningar!C179,\"\")","v":""},{"$f":"IF(Val!$C14<>\"\",Beräkningar!G180,\"\")","v":""}]
[{"$f":"Val!$C$15","v":0},{"$f":"IF(Val!$E$15=\"\",\"\",Val!$E$15)","v":""},null,{"$f":"IF(Val!$C15<>\"\",Beräkningar!C187,\"\")","v":""},{"$f":"IF(Val!$C15<>\"\",Beräkningar!G192,\"\")","v":""}]
[{"$f":"Val!$C$16","v":0},{"$f":"IF(Val!$E$16=\"\",\"\",Val!$E$16)","v":""},null,{"$f":"IF(Val!$C16<>\"\",Beräkningar!C199,\"\")","v":""},{"$f":"IF(Val!$C16<>\"\",Beräkningar!G204,\"\")","v":""}]
[{"$f":"Val!$C$17","v":0},{"$f":"IF(Val!$E$17=\"\",\"\",Val!$E$17)","v":""},null,{"$f":"IF(Val!$C17<>\"\",Beräkningar!C215,\"\")","v":""},{"$f":"IF(Val!$C17<>\"\",Beräkningar!G216,\"\")","v":""}]
[{"$f":"Val!$C$18","v":0},{"$f":"IF(Val!$E$18=\"\",\"\",Val!$E$18)","v":""},null,{"$f":"IF(Val!$C18<>\"\",Beräkningar!C227,\"\")","v":""},{"$f":"IF(Val!$C18<>\"\",Beräkningar!G228,\"\")","v":""}]
["Summa utsläpp CH4 (Nm3/år)",null,null,null,{"$f":"SUM(E11:E21)","v":0}]
["Totalt metanflöde i anläggning (Nm3/år)",null,null,null,{"$f":"Beräkningar!G11+Beräkningar!G17","v":60000}]
["Metanförlust (%)",null,null,null,{"$f":"(E22/E23)*100","v":0}]
[]
[null,"Läcksökning"]
[null,"Bolagets rutiner för läcksökning, samt utförandet enligt rutin, har granskats."]
[null,"Finns rutin?",{"$f":"'Sid 1'!C32","v":0}]
[null,"Intervall",{"$f":"'Sid 1'!C33","v":0}]
[null,"Utrustning",{"$f":"'Sid 1'!C34","v":0}]
[null,"Utfört enligt rutin?",{"$f":"'Sid 1'!C35","v":0}]
[null,null,{"$f":"IF('Sid 1'!C36=\"\",\"\",'Sid 1'!C36)","v":""}]
[]
[null,"Härmed intygas att kvantifiering enligt föreskrivna riktlinjer i EgMet har ägt rum"]
[null,{"$f":"'Sid 1'!C17","v":0}]

{"sheet":"Protokoll 2","index":16,"n_rows":30,"n_cols":5,"rows_kept":30,"cut":false,"hidden":false,"merged":[[26,1,26,4],[27,1,27,4],[28,1,28,4],[20,1,20,2],[20,3,20,4],[21,0,21,1],[23,0,23,1],[24,0,24,1],[17,1,17,2],[17,3,17,4],[18,1,18,2],[18,3,18,4],[19,1,19,2],[19,3,19,4],[14,1,14,2],[14,3,14,4],[15,1,15,2],[15,3,15,4],[16,1,16,2],[16,3,16,4],[11,1,11,2],[11,3,11,4],[12,1,12,2],[12,3,12,4],[13,1,13,2],[13,3,13,4],[10,1,10,2],[10,3,10,4],[1,2,1,3],[2,2,2,3],[3,2,3,3],[4,0,6,1],[4,2,4,3],[5,2,5,3],[6,2,6,3],[8,0,9,0],[8,1,8,2],[8,3,8,4],[9,1,9,2],[9,3,9,4]]}
[]
["Rapport utgåva",{"$f":"'Sid 1'!$C$3","v":0},"Anläggningsnamn:",null,{"$f":"'Sid 1'!$C$7","v":0}]
["Rapport datum",{"$f":"'Sid 1'!$C$4","v":"00:00:00"},"Uppgraderingsteknik:",null,{"$f":"'Sid 1'!$C$9","v":0}]
["Mätning datum",{"$f":"'Sid 1'!$C$22","v":"00:00:00"},"Huvudman/ägare:",null,{"$f":"'Sid 1'!C10","v":0}]
["[plats för logotyp huvudman/ägare]",null,"Kontaktperson:",null,{"$f":"'Sid 1'!$C$11","v":0}]
[null,null,"Telefon:",null,{"$f":"'Sid 1'!$C$12","v":0}]
[null,null,"E-post:",null,{"$f":"'Sid 1'!$C$13","v":0}]
[]
["Utsläpps-\nobjekt","Ev. lokal benämning/tag",null,"Planerad åtgärd"]
[]
[{"$f":"Val!$C$8","v":0},{"$f":"IF(Val!$E$8=\"\",\"\",Val!$E$8)","v":""}]
[{"$f":"Val!$C$9","v":0},{"$f":"IF(Val!$E$9=\"\",\"\",Val!$E$9)","v":""}]
[{"$f":"Val!$C$10","v":0},{"$f":"IF(Val!$E$10=\"\",\"\",Val!$E$10)","v":""}]
[{"$f":"Val!$C$11","v":0},{"$f":"IF(Val!$E$11=\"\",\"\",Val!$E$11)","v":""}]
[{"$f":"Val!$C$12","v":0},{"$f":"IF(Val!$E$12=\"\",\"\",Val!$E$12)","v":""}]
[{"$f":"Val!$C$13","v":0},{"$f":"IF(Val!$E$13=\"\",\"\",Val!$E$13)","v":""}]
[{"$f":"Val!$C$14","v":0},{"$f":"IF(Val!$E$14=\"\",\"\",Val!$E$14)","v":""}]
[{"$f":"Val!$C$15","v":0},{"$f":"IF(Val!$E$15=\"\",\"\",Val!$E$15)","v":""}]
[{"$f":"Val!$C$16","v":0},{"$f":"IF(Val!$E$16=\"\",\"\",Val!$E$16)","v":""}]
[{"$f":"Val!$C$17","v":0},{"$f":"IF(Val!$E$17=\"\",\"\",Val!$E$17)","v":""}]
[{"$f":"Val!$C$18","v":0},{"$f":"IF(Val!$E$18=\"\",\"\",Val!$E$18)","v":""}]
["Summa utsläpp CH4 (Nm3/år)",null,null,null,{"$f":"'Protokoll 1'!E22","v":0}]
["Totalt metanflöde i anläggning (Nm3/år)",null,null,null,{"$f":"'Protokoll 1'!E23","v":60000}]
["Metanförlust (%)",null,null,null,{"$f":"(E22/E23)*100","v":0}]
["Mål metanförlust (%)"]
[]
[null,"Härmed intygas att vi tagit del av mätresultaten och planerar för åtgärder enligt ovan"]
[null,{"$f":"'Sid 1'!C11","v":0}]
[]
[null,"Instruktion: Fyll i era åtgärder och mål, sänd sedan Bilaga 2a och 2b till kansli@egmet.se"]